fUSD/lending_fUSD_20250107
["ID","MTS","AMOUNT","RATE_DAILY","PERIOD"]
[348074377,1736293852557,-500.0,0.00010645,2]
[348074378,1736293852567,-500.0,0.00010645,2]
[348074379,1736293852575,-500.0,0.00010645,2]
[348074380,1736293852585,-500.0,0.00010645,2]
[348074381,1736293852595,-500.0,0.00010645,2]
[348074382,1736293852604,-500.0,0.00010645,2]
[348074383,1736293852613,-500.0,0.00010645,2]
[348074384,1736293852623,-500.0,0.00010645,2]
[348074385,1736293852633,-500.0,0.00010645,2]
[348074386,1736293852642,-500.0,0.00010645,2]
[348074387,1736293852651,-500.0,0.00010645,2]
[348074388,1736293852661,-500.0,0.00010645,2]
[348074389,1736293852671,-500.0,0.00010645,2]
[348074390,1736293852681,-507.58942472,0.00010645,2]
[348074391,1736293852690,-500.0,0.00010645,2]
[348074392,1736293852700,-500.0,0.00010645,2]
[348074393,1736293852709,-500.0,0.00010645,2]
[348074394,1736293852719,-500.0,0.00010645,2]
[348074395,1736293852728,-500.0,0.00010645,2]
[348074396,1736293852739,-500.0,0.00010645,2]
[348074397,1736293852749,-500.0,0.00010645,2]
[348074398,1736293852758,-500.0,0.00010645,2]
[348074399,1736293852768,-500.0,0.00010645,2]
[348074400,1736293852777,-500.0,0.00010645,2]
[348074401,1736293852786,-500.0,0.00010645,2]
[348074402,1736293852796,-500.0,0.00010645,2]
[348074403,1736293852805,-500.0,0.00010645,2]
[348074404,1736293852813,-500.0,0.00010645,2]
[348074405,1736293852822,-500.0,0.00010645,2]
[348074406,1736293852831,-500.0,0.00010645,2]
[348074407,1736293852840,-193.55376276,0.00010645,2]
[348074408,1736293852850,-500.0,0.00010645,2]
[348074409,1736293852859,-614.3,0.00010645,2]
[348074410,1736293852868,-500.0,0.00010645,2]
[348074411,1736293852877,-500.0,0.00010645,2]
[348074412,1736293852886,-753.89,0.00010645,2]
[348074413,1736293852895,-582.41,0.00010645,2]
[348074414,1736293852904,-500.0,0.00010645,2]
[348074415,1736293852914,-500.0,0.00010645,2]
[348074416,1736293852922,-500.0,0.00010645,2]
[348074417,1736293852935,-500.0,0.00010645,2]
[348074418,1736293852953,-500.0,0.00010645,2]
[348074419,1736293852968,-500.0,0.00010645,2]
[348074420,1736293852982,-769.84,0.00010645,2]
[348074421,1736293852997,-500.0,0.00010645,2]
[348074422,1736293853012,-500.0,0.00010645,2]
[348074423,1736293853026,-500.0,0.00010645,2]
[348074424,1736293853039,-1241.15,0.00010645,2]
[348074425,1736293853052,-500.0,0.00010645,2]
[348074426,1736293853066,-699.51,0.00010645,2]
[348074427,1736293853080,-533.39,0.00010645,2]
[348074428,1736293853095,-500.0,0.00010645,2]
[348074429,1736293853110,-500.0,0.00010645,2]
[348074430,1736293853126,-500.0,0.00010645,2]
[348074431,1736293853139,-500.0,0.00010645,2]
[348074432,1736293853153,-670.07,0.00010645,2]
[348074433,1736293853167,-1516.01,0.00010645,2]
[348074434,1736293853182,-500.0,0.00010645,2]
[348074435,1736293853198,-500.0,0.00010645,2]
[348074436,1736293853211,-500.0,0.00010645,2]
[348074437,1736293853223,-500.0,0.00010645,2]
[348074438,1736293853237,-1569.01,0.00010645,2]
[348074439,1736293853251,-503.82,0.00010645,2]
[348074440,1736293853262,-500.0,0.00010645,2]
[348074441,1736293853274,-500.0,0.00010645,2]
[348074442,1736293853289,-1908.97,0.00010645,2]
[348074443,1736293853301,-500.0,0.00010645,2]
[348074444,1736293853312,-500.0,0.00010645,2]
[348074445,1736293853324,-1052.81,0.00010645,2]
[348074446,1736293853340,-2068.03,0.00010645,2]
[348074447,1736293853352,-662.64,0.00010645,2]
[348074448,1736293853364,-500.0,0.00010645,2]
[348074449,1736293853377,-500.0,0.00010645,2]
[348074450,1736293853389,-1860.77,0.00010645,2]
[348074451,1736293853404,-500.0,0.00010645,2]
[348074452,1736293853418,-500.0,0.00010645,2]
[348074453,1736293853430,-936.69,0.00010645,2]
[348074454,1736293853444,-500.0,0.00010645,2]
[348074455,1736293853456,-500.0,0.00010645,2]
[348074456,1736293853469,-500.0,0.00010645,2]
[348074457,1736293853482,-500.0,0.00010645,2]
[348074458,1736293853494,-2152.19,0.00010645,2]
[348074459,1736293853506,-500.0,0.00010645,2]
[348074460,1736293853519,-1369.51,0.00010645,2]
[348074461,1736293853532,-500.0,0.00010645,2]
[348074462,1736293853543,-500.0,0.00010645,2]
[348074463,1736293853556,-500.0,0.00010645,2]
[348074464,1736293853568,-500.0,0.00010645,2]
[348074465,1736293853581,-829.55,0.00010645,2]
[348074466,1736293853593,-789.34,0.00010645,2]
[348074467,1736293853605,-500.0,0.00010645,2]
[348074468,1736293853619,-813.16,0.00010645,2]
[348074469,1736293853631,-500.0,0.00010645,2]
[348074470,1736293853643,-500.0,0.00010645,2]
[348074471,1736293853656,-500.0,0.00010645,2]
[348074472,1736293853668,-500.0,0.00010645,2]
[348074473,1736293853680,-687.51,0.00010645,2]
[348074474,1736293853693,-500.0,0.00010645,2]
[348074475,1736293853705,-500.0,0.00010646,2]
[348074476,1736293853717,-500.0,0.00010646,2]
[348074477,1736293853729,-642.04,0.00010646,2]
[348074478,1736293853741,-500.0,0.00010646,2]
[348074479,1736293853753,-500.0,0.00010646,2]
[348074480,1736293853766,-500.0,0.00010646,2]
[348074481,1736293853777,-500.0,0.00010646,2]
[348074482,1736293853790,-500.0,0.00010646,2]
[348074483,1736293853802,-500.0,0.00010646,2]
[348074484,1736293853814,-500.0,0.00010646,2]
[348074485,1736293853826,-500.0,0.00010646,2]
[348074486,1736293853839,-644.13,0.00010646,2]
[348074487,1736293853851,-500.0,0.00010646,2]
[348074488,1736293853863,-899.98,0.00010646,2]
[348074489,1736293853876,-648.46,0.00010646,2]
[348074490,1736293853888,-838.45,0.00010646,2]
[348074491,1736293853901,-609.48,0.00010646,2]
[348074492,1736293853914,-500.0,0.00010646,2]
[348074493,1736293853926,-1514.33,0.00010646,2]
[348074494,1736293853939,-500.0,0.00010646,2]
[348074495,1736293853952,-500.0,0.00010646,2]
[348074496,1736293853965,-500.0,0.00010646,2]
[348074497,1736293853978,-3662.18,0.00010646,2]
[348074498,1736293853991,-500.0,0.00010646,2]
[348074499,1736293854004,-500.0,0.00010646,2]
[348074500,1736293854017,-500.0,0.00010646,2]
[348074501,1736293854029,-500.0,0.00010646,2]
[348074502,1736293854039,-500.0,0.00010646,2]
[348074503,1736293854048,-500.0,0.00010646,2]
[348074504,1736293854057,-500.0,0.00010646,2]
[348074505,1736293854066,-360.22876625,0.00010646,2]
[348074506,1736293854075,-500.0,0.00010646,2]
[348074507,1736293854084,-500.0,0.00010646,2]
[348074508,1736293854093,-500.0,0.00010646,2]
[348074509,1736293854103,-500.0,0.00010646,2]
[348074510,1736293854112,-500.0,0.00010646,2]
[348074511,1736293854122,-724.25,0.00010646,2]
[348074512,1736293854131,-610.86,0.00010646,2]
[348074513,1736293854141,-671.25,0.00010646,2]
[348074514,1736293854150,-735.0,0.00010646,2]
[348074515,1736293854159,-500.0,0.00010646,2]
[348074516,1736293854168,-500.0,0.00010646,2]
[348074517,1736293854177,-500.0,0.00010646,2]
[348074518,1736293854186,-500.0,0.00010646,2]
[348074519,1736293854196,-690.58,0.00010646,2]
[348074520,1736293854205,-500.0,0.00010646,2]
[348074521,1736293854215,-500.0,0.00010646,2]
[348074522,1736293854225,-500.0,0.00010646,2]
[348074523,1736293854234,-530.3,0.00010646,2]
[348074524,1736293854244,-500.0,0.00010646,2]
[348074525,1736293854254,-597.1,0.00010646,2]
[348074526,1736293854263,-500.0,0.00010646,2]
[348074527,1736293854273,-500.0,0.00010646,2]
[348074528,1736293854282,-500.0,0.00010646,2]
[348074529,1736293854292,-500.0,0.00010646,2]
[348074530,1736293854302,-1181.84,0.00010646,2]
[348074531,1736293854312,-500.0,0.00010646,2]
[348074532,1736293854321,-1750.83,0.00010646,2]
[348074533,1736293854330,-325.9218732,0.00010646,2]
[348074534,1736293854340,-823.79,0.00010646,2]
[348074535,1736293854349,-500.0,0.00010646,2]
[348074536,1736293854358,-500.0,0.00010646,2]
[348074537,1736293854367,-500.0,0.00010646,2]
[348074538,1736293854376,-500.0,0.00010646,2]
[348074539,1736293854385,-1984.69,0.00010646,2]
[348074540,1736293854394,-708.58,0.00010646,2]
[348074541,1736293854407,-500.0,0.00010646,2]
[348074542,1736293854416,-500.0,0.00010646,2]
[348074543,1736293854425,-500.0,0.00010646,2]
[348074544,1736293854753,-1402.78,0.00010646,2]
[348074545,1736293854778,-914.79,0.00010646,2]
[348074546,1736293854796,-500.0,0.00010646,2]
[348074547,1736293854810,-500.0,0.00010646,2]
[348074548,1736293854819,-500.0,0.00010646,2]
[348074549,1736293854828,-719.13,0.00010646,2]
[348074550,1736293854838,-500.0,0.00010646,2]
[348074551,1736293854847,-500.0,0.00010646,2]
[348074552,1736293854856,-500.0,0.00010646,2]
[348074553,1736293854866,-500.0,0.00010646,2]
[348074554,1736293854876,-690.01,0.00010646,2]
[348074555,1736293854886,-500.0,0.00010646,2]
[348074556,1736293854896,-1186.64,0.00010646,2]
[348074557,1736293854905,-500.0,0.00010646,2]
[348074558,1736293854915,-500.0,0.00010646,2]
[348074559,1736293854924,-1812.3,0.00010646,2]
[348074560,1736293854934,-500.0,0.00010646,2]
[348074561,1736293854943,-500.0,0.00010646,2]
[348074562,1736293854953,-795.99,0.00010646,2]
[348074563,1736293854962,-1000.0,0.00010646,2]
[348074564,1736293854972,-500.0,0.00010646,2]
[348074565,1736293854982,-799.53,0.00010646,2]
[348074566,1736293854991,-566.68,0.00010646,2]
[348074567,1736293855001,-318.55520504,0.00010646,2]
[348074568,1736293855012,-500.0,0.00010646,2]
[348074569,1736293855021,-500.0,0.00010646,2]
[348074570,1736293855031,-500.0,0.00010646,2]
[348074571,1736293855040,-500.0,0.00010646,2]
[348074572,1736293855049,-442.1,0.00010646,2]
[348074573,1736293855058,-1618.63,0.00010646,2]
[348074574,1736293855067,-179.10452172,0.00010666,2]
[348074575,1736293855077,-3054.42136904,0.00010667,2]
[348074576,1736293855086,-258.6379,0.00010681,2]
[348074577,1736293855095,-181.644712,0.00010703,2]
[348074578,1736293855105,-561.90280108,0.00010721,2]
[348074579,1736293855116,-460.15,0.00010721,2]
[348074580,1736293855125,-599.38864183,0.00010721,2]
[348074581,1736293855135,-500.0,0.00010721,2]
[348074582,1736293855145,-500.0,0.00010721,2]
[348074583,1736293855154,-500.0,0.00010721,2]
[348074584,1736293855163,-500.0,0.00010721,2]
[348074585,1736293855174,-745.41,0.00010721,2]
[348074586,1736293855184,-689.56,0.00010721,2]
[348074587,1736293855193,-1125.14,0.00010721,2]
[348074588,1736293855202,-500.0,0.00010721,2]
[348074589,1736293855211,-500.0,0.00010721,2]
[348074590,1736293855219,-2044.25,0.00010721,2]
[348074591,1736293855228,-879.84,0.00010721,2]
[348074592,1736293855238,-500.0,0.00010721,2]
[348074593,1736293855247,-648.33,0.00010721,2]
[348074594,1736293855257,-1209.31,0.00010721,2]
[348074595,1736293855265,-883.01,0.00010721,2]
[348074596,1736293855275,-500.0,0.00010721,2]
[348074597,1736293855283,-501.45,0.00010722,2]
[348074598,1736293855292,-824.81,0.00010722,2]
[348074599,1736293855302,-1519.87,0.00010722,2]
[348074600,1736293855310,-207.74170204,0.00010736,2]
[348074601,1736293855319,-179.10452172,0.0001079,2]
[348074602,1736293855328,-500.0,0.00010806,2]
[348074603,1736293855337,-500.0,0.00010806,2]
[348074604,1736293855346,-702.98,0.00010806,2]
[348074605,1736293855355,-673.69,0.00010806,2]
[348074606,1736293855364,-500.0,0.00010806,2]
[348074607,1736293855373,-779.03,0.00010806,2]
[348074608,1736293855382,-1551.77,0.00010806,2]
[348074609,1736293855391,-1088.09,0.00010806,2]
[348074610,1736293855402,-620.746265,0.00010806,2]
[348074611,1736293855412,-597.759592,0.00010806,2]
[348074612,1736293855421,-559.7684327,0.00010806,2]
[348074613,1736293855735,-500.0,0.00010001,2]
[348074614,1736293855745,-1440.6315673,0.00010806,2]
[348074615,1736293855755,-500.0,0.00010806,2]
[348074616,1736293855764,-500.0,0.00010806,2]
[348074617,1736293855774,-500.0,0.00010806,2]
[348074618,1736293855783,-1099.3684327,0.00010806,2]
[348074619,1736293855795,-385.4815673,0.00010806,2]
[348074620,1736293855804,-550.3,0.00010823,2]
[348074621,1736293855814,-18.97378562,0.00010823,2]
[348074622,1736293855825,-132.71621438,0.00010823,2]
[348074623,1736293855837,-166.81512615,0.000109,2]
[348074624,1736293855846,-166.8151261,0.000109,2]
[348074625,1736293855855,-166.8151261,0.000109,2]
[348074626,1736293855864,-179.10452172,0.00010914,2]
[348074627,1736293855874,-500.0,0.00010919,2]
[348074628,1736293855883,-500.0,0.00010919,2]
[348074629,1736293855892,-500.0,0.00010919,2]
[348074630,1736293855901,-500.0,0.00010919,2]
[348074631,1736293855910,-500.0,0.00010919,2]
[348074632,1736293855919,-500.0,0.00010919,2]
[348074633,1736293855928,-633.03,0.00010919,2]
[348074634,1736293855937,-500.0,0.00010919,2]
[348074635,1736293855946,-500.0,0.00010919,2]
[348074636,1736293855955,-500.0,0.00010919,2]
[348074637,1736293855965,-500.0,0.00010919,2]
[348074638,1736293855974,-500.0,0.00010919,2]
[348074639,1736293855983,-500.0,0.00010919,2]
[348074640,1736293855993,-272.80851296,0.00010919,2]
[348074641,1736293856002,-500.0,0.00010919,2]
[348074642,1736293856011,-500.0,0.00010919,2]
[348074643,1736293856021,-500.0,0.00010919,2]
[348074644,1736293856031,-500.0,0.00010919,2]
[348074645,1736293856040,-500.0,0.00010919,2]
[348074646,1736293856049,-500.0,0.00010919,2]
[348074647,1736293856058,-500.0,0.00010919,2]
[348074648,1736293856067,-551.7279913,0.00010919,2]
[348074649,1736293856077,-500.0,0.00010919,2]
[348074650,1736293856086,-500.0,0.00010919,2]
[348074651,1736293856095,-500.0,0.00010919,2]
[348074652,1736293856105,-500.0,0.00010919,2]
[348074653,1736293856113,-500.0,0.00010919,2]
[348074654,1736293856123,-500.0,0.00010919,2]
[348074655,1736293856132,-500.0,0.00010919,2]
[348074656,1736293856141,-500.0,0.00010919,2]
[348074657,1736293856150,-614.3,0.00010919,2]
[348074658,1736293856160,-500.0,0.00010919,2]
[348074659,1736293856169,-500.0,0.00010919,2]
[348074660,1736293856179,-753.89,0.00010919,2]
[348074661,1736293856188,-582.41,0.00010919,2]
[348074662,1736293856198,-500.0,0.00010919,2]
[348074663,1736293856207,-500.0,0.00010919,2]
[348074664,1736293856217,-500.0,0.00010919,2]
[348074665,1736293856226,-500.0,0.00010919,2]
[348074666,1736293856235,-500.0,0.00010919,2]
[348074667,1736293856245,-500.0,0.00010919,2]
[348074668,1736293856255,-769.84,0.00010919,2]
[348074669,1736293856265,-500.0,0.00010919,2]
[348074670,1736293856274,-500.0,0.00010919,2]
[348074671,1736293856283,-500.0,0.00010919,2]
[348074672,1736293856293,-1241.15,0.00010919,2]
[348074673,1736293856302,-500.0,0.00010919,2]
[348074674,1736293856311,-699.51,0.00010919,2]
[348074675,1736293856321,-533.39,0.00010919,2]
[348074676,1736293856330,-500.0,0.00010919,2]
[348074677,1736293856339,-500.0,0.00010919,2]
[348074678,1736293856348,-500.0,0.00010919,2]
[348074679,1736293856357,-500.0,0.00010919,2]
[348074680,1736293856367,-670.07,0.00010919,2]
[348074681,1736293856376,-1516.01,0.00010919,2]
[348074682,1736293856385,-500.0,0.00010919,2]
[348074683,1736293856395,-500.0,0.00010919,2]
[348074684,1736293856409,-500.0,0.00010919,2]
[348074685,1736293856419,-500.0,0.00010919,2]
[348074686,1736293856428,-1569.01,0.00010919,2]
[348074687,1736293856437,-503.82,0.00010919,2]
[348074688,1736293856447,-500.0,0.00010919,2]
[348074689,1736293856457,-500.0,0.00010919,2]
[348074690,1736293856467,-1908.97,0.00010919,2]
[348074691,1736293856477,-500.0,0.00010919,2]
[348074692,1736293856486,-500.0,0.00010919,2]
[348074693,1736293856496,-1052.81,0.00010919,2]
[348074694,1736293856505,-2068.03,0.00010919,2]
[348074695,1736293856515,-662.64,0.00010919,2]
[348074696,1736293856524,-500.0,0.00010919,2]
[348074697,1736293856533,-500.0,0.00010919,2]
[348074698,1736293856542,-1860.77,0.00010919,2]
[348074699,1736293856551,-500.0,0.00010919,2]
[348074700,1736293856561,-500.0,0.00010919,2]
[348074701,1736293856571,-936.69,0.00010919,2]
[348074702,1736293856580,-500.0,0.00010919,2]
[348074703,1736293856588,-500.0,0.00010919,2]
[348074704,1736293856596,-500.0,0.00010919,2]
[348074705,1736293856604,-500.0,0.00010919,2]
[348074706,1736293856613,-2152.19,0.00010919,2]
[348074707,1736293856622,-500.0,0.00010919,2]
[348074708,1736293856630,-1369.51,0.00010919,2]
[348074709,1736293856640,-500.0,0.00010919,2]
[348074710,1736293856649,-500.0,0.00010919,2]
[348074711,1736293856659,-500.0,0.00010919,2]
[348074712,1736293856668,-829.55,0.00010919,2]
[348074713,1736293856677,-789.34,0.00010919,2]
[348074714,1736293856686,-500.0,0.00010919,2]
[348074715,1736293856695,-500.0,0.00010919,2]
[348074716,1736293856704,-813.16,0.00010919,2]
[348074717,1736293856713,-500.0,0.00010919,2]
[348074718,1736293856723,-500.0,0.00010919,2]
[348074719,1736293856731,-500.0,0.00010919,2]
[348074720,1736293856741,-687.51,0.00010919,2]
[348074721,1736293856750,-500.0,0.00010919,2]
[348074722,1736293856759,-500.0,0.0001092,2]
[348074723,1736293856768,-500.0,0.0001092,2]
[348074724,1736293856776,-642.04,0.0001092,2]
[348074725,1736293856785,-500.0,0.0001092,2]
[348074726,1736293856794,-500.0,0.0001092,2]
[348074727,1736293856804,-500.0,0.0001092,2]
[348074728,1736293856812,-500.0,0.0001092,2]
[348074729,1736293856822,-500.0,0.0001092,2]
[348074730,1736293856830,-500.0,0.0001092,2]
[348074731,1736293856839,-500.0,0.0001092,2]
[348074732,1736293856848,-500.0,0.0001092,2]
[348074733,1736293856857,-644.13,0.0001092,2]
[348074734,1736293856866,-500.0,0.0001092,2]
[348074735,1736293856875,-899.98,0.0001092,2]
[348074736,1736293856884,-648.46,0.0001092,2]
[348074737,1736293856893,-838.45,0.0001092,2]
[348074738,1736293856902,-609.48,0.0001092,2]
[348074739,1736293856911,-500.0,0.0001092,2]
[348074740,1736293856920,-1514.33,0.0001092,2]
[348074741,1736293856929,-500.0,0.0001092,2]
[348074742,1736293856937,-500.0,0.0001092,2]
[348074743,1736293856947,-3662.18,0.0001092,2]
[348074744,1736293856956,-500.0,0.0001092,2]
[348074745,1736293856965,-500.0,0.0001092,2]
[348074746,1736293856974,-500.0,0.0001092,2]
[348074747,1736293856983,-500.0,0.0001092,2]
[348074748,1736293856992,-500.0,0.0001092,2]
[348074749,1736293857002,-500.0,0.0001092,2]
[348074750,1736293857011,-500.0,0.0001092,2]
[348074751,1736293857020,-500.0,0.0001092,2]
[348074752,1736293857029,-500.0,0.0001092,2]
[348074753,1736293857038,-500.0,0.0001092,2]
[348074754,1736293857047,-500.0,0.0001092,2]
[348074755,1736293857057,-500.0,0.0001092,2]
[348074756,1736293857067,-724.25,0.0001092,2]
[348074757,1736293857076,-610.86,0.0001092,2]
[348074758,1736293857085,-671.25,0.0001092,2]
[348074759,1736293857094,-735.0,0.0001092,2]
[348074760,1736293857104,-500.0,0.0001092,2]
[348074761,1736293857113,-500.0,0.0001092,2]
[348074762,1736293857122,-500.0,0.0001092,2]
[348074763,1736293857131,-500.0,0.0001092,2]
[348074764,1736293857140,-690.58,0.0001092,2]
[348074765,1736293857149,-500.0,0.0001092,2]
[348074766,1736293857158,-500.0,0.0001092,2]
[348074767,1736293857168,-500.0,0.0001092,2]
[348074768,1736293857177,-530.3,0.0001092,2]
[348074769,1736293857187,-500.0,0.0001092,2]
[348074770,1736293857196,-597.1,0.0001092,2]
[348074771,1736293857204,-500.0,0.0001092,2]
[348074772,1736293857215,-500.0,0.0001092,2]
[348074773,1736293857224,-500.0,0.0001092,2]
[348074774,1736293857233,-500.0,0.0001092,2]
[348074775,1736293857243,-1181.84,0.0001092,2]
[348074776,1736293857252,-500.0,0.0001092,2]
[348074777,1736293857261,-1750.83,0.0001092,2]
[348074778,1736293857270,-823.79,0.0001092,2]
[348074779,1736293857279,-500.0,0.0001092,2]
[348074780,1736293857288,-500.0,0.0001092,2]
[348074781,1736293857298,-500.0,0.0001092,2]
[348074782,1736293857307,-500.0,0.0001092,2]
[348074783,1736293857316,-1984.69,0.0001092,2]
[348074784,1736293857325,-500.0,0.0001092,2]
[348074785,1736293857335,-708.58,0.0001092,2]
[348074786,1736293857343,-500.0,0.0001092,2]
[348074787,1736293857353,-500.0,0.0001092,2]
[348074788,1736293857362,-1402.78,0.0001092,2]
[348074789,1736293857371,-914.79,0.0001092,2]
[348074790,1736293857380,-500.0,0.0001092,2]
[348074791,1736293857389,-500.0,0.0001092,2]
[348074792,1736293857398,-500.0,0.0001092,2]
[348074793,1736293857410,-719.13,0.0001092,2]
[348074794,1736293857419,-500.0,0.0001092,2]
[348074795,1736293857428,-500.0,0.0001092,2]
[348074796,1736293857437,-500.0,0.0001092,2]
[348074797,1736293857450,-500.0,0.0001092,2]
[348074798,1736293857460,-690.01,0.0001092,2]
[348074799,1736293857469,-500.0,0.0001092,2]
[348074800,1736293857479,-1186.64,0.0001092,2]
[348074801,1736293857489,-500.0,0.0001092,2]
[348074802,1736293857498,-500.0,0.0001092,2]
[348074803,1736293857507,-307.3598204,0.0001092,2]
[348074804,1736293857516,-500.0,0.0001092,2]
[348074805,1736293857525,-795.99,0.0001092,2]
[348074806,1736293857534,-1000.0,0.0001092,2]
[348074807,1736293857543,-500.0,0.0001092,2]
[348074808,1736293857553,-799.53,0.0001092,2]
[348074809,1736293857562,-566.68,0.0001092,2]
[348074810,1736293857571,-500.0,0.0001092,2]
[348074811,1736293857581,-500.0,0.0001092,2]
[348074812,1736293857590,-500.0,0.0001092,2]
[348074813,1736293857599,-500.0,0.0001092,2]
[348074814,1736293857609,-1618.63,0.0001092,2]
[348074815,1736293857618,-207.74170204,0.00010945,2]
[348074816,1736293857627,-150.0,0.00010948,2]
[348074817,1736293857637,-150.0,0.00010948,2]
[348074818,1736293857646,-150.0,0.00010948,2]
[348074819,1736293857655,-150.0,0.00010948,2]
[348074820,1736293857664,-150.0,0.00010948,2]
[348074821,1736293857674,-262.08922209,0.00010948,2]
[348074822,1736293857902,-150.0,0.00010948,2]
[348074823,1736293857912,-7500.0,0.00010958,2]
[348074824,1736293857922,-7500.0,0.00010958,2]
[348074825,1736293857931,-7500.0,0.00010958,2]
[348074826,1736293857940,-4703.68150021,0.00010958,2]
[348074827,1736293857950,-1496.51,0.00010958,2]
[348074828,1736293857959,-150.0,0.00010959,2]
[348074829,1736293857968,-400.0,0.00010986,2]
[348074830,1736293857978,-500.0,0.00010995,2]
[348074831,1736293857987,-500.0,0.00010995,2]
[348074832,1736293857996,-500.0,0.00010995,2]
[348074833,1736293858005,-500.0,0.00010995,2]
[348074834,1736293858014,-745.41,0.00010995,2]
[348074835,1736293858023,-689.56,0.00010995,2]
[348074836,1736293858032,-1125.14,0.00010995,2]
[348074837,1736293858041,-500.0,0.00010995,2]
[348074838,1736293858051,-500.0,0.00010995,2]
[348074839,1736293858060,-2044.25,0.00010995,2]
[348074840,1736293858069,-879.84,0.00010995,2]
[348074841,1736293858080,-500.0,0.00010995,2]
[348074842,1736293858089,-648.33,0.00010995,2]
[348074843,1736293858099,-1209.31,0.00010995,2]
[348074844,1736293858108,-883.01,0.00010995,2]
[348074845,1736293858118,-500.0,0.00010995,2]
[348074846,1736293858127,-501.45,0.00010996,2]
[348074847,1736293858136,-824.81,0.00010996,2]
[348074848,1736293858146,-1519.87,0.00010996,2]
[348074849,1736293858155,-150.0,0.00011003,2]
[348074850,1736293858164,-166.8151261,0.0001102,2]
[348074851,1736293858174,-150.0,0.00011035,2]
[348074852,1736293858183,-179.10452172,0.00011038,2]
[348074853,1736293858193,-3054.42136904,0.0001105,2]
[348074854,1736293858203,-500.0,0.00011054,2]
[348074855,1736293858212,-150.0,0.00011059,2]
[348074856,1736293858222,-1053.0,0.00011064,2]
[348074857,1736293858231,-500.0,0.0001108,2]
[348074858,1736293858241,-500.0,0.0001108,2]
[348074859,1736293858250,-702.98,0.0001108,2]
[348074860,1736293858259,-673.69,0.0001108,2]
[348074861,1736293858269,-500.0,0.0001108,2]
[348074862,1736293858278,-779.03,0.0001108,2]
[348074863,1736293858288,-1551.77,0.0001108,2]
[348074864,1736293858297,-1088.09,0.0001108,2]
[348074865,1736293858307,-620.746265,0.0001108,2]
[348074866,1736293858317,-597.759592,0.0001108,2]
[348074867,1736293858326,-2000.4,0.0001108,2]
[348074868,1736293858336,-500.0,0.0001108,2]
[348074869,1736293858345,-500.0,0.0001108,2]
[348074870,1736293858355,-500.0,0.0001108,2]
[348074871,1736293858364,-1484.85,0.0001108,2]
[348074872,1736293858374,-550.3,0.00011097,2]
[348074873,1736293858384,-1000.0,0.00011122,2]
[348074874,1736293858394,-1000.0,0.00011122,2]
[348074875,1736293858406,-1000.0,0.00011122,2]
[348074876,1736293858417,-1000.0,0.00011122,2]